[Event "Fagernes GM Open Autumn 2024"]
[Site "Fagernes"]
[Date "2024.10.08"]
[Round "3.29"]
[White "Stromhaug, Kristoffer Wang"]
[Black "Juodziukynas, Aidas"]
[Result "1/2-1/2"]
[ECO "B90"]
[WhiteElo "1960"]
[BlackElo "1917"]
[Annotator "RC"]
[PlyCount "94"]
[EventDate "2024.10.03"]
[EventType "swiss"]
[EventCountry "NOR"]
[SourceTitle "playchess.com"]
[Source "ChessBase"]
[SourceQuality "1"]
[TimeControl "40/6000:2400+30"]

1. e4 {[%emt 0:00:00]} c5 {[%emt 0:00:00]} 2. Nf3 {[%emt 0:00:00]} d6 {[%emt 0:00:00]} 3. d4 {[%emt 0:00:00]} cxd4 {[%emt 0:00:00]} 4. Nxd4 {[%emt 0:00:00]} Nf6 {[%emt 0:00:00]} 5. Nc3 {[%emt 0:00:00]} a6 {[%emt 0:00:00]} 6. h3 {[%emt 0:00:00]} e5 {[%emt 0:00:00]} 7. Nb3 {[%emt 0:00:00]} Be6 {[%emt 0:00:00]} 8. f4 {[%emt 0:00:00]} b5 {[%emt 0:00:00]} 9. f5 {[%emt 0:00:00]} Bc8 {[%emt 0:00:00]} 10. Bg5 {[%emt 0:00:00]} Bb7 {[%emt 0:02:53]} 11. a4 {[%emt 0:02:02]} bxa4 {[%emt 0:01:40]} 12. Rxa4 {[%emt 0:06:32]} Be7 {[%emt 0:02:28]} 13. Qd3 {[%emt 0:25:54]} Nh5 {[%emt 0:10:01]} 14. Bxe7 {[%emt 0:02:25]} Qxe7 {[%emt 0:00:00]} 15. g3 {[%emt 0:00:18]} Qg5 {[%emt 0:01:59]} 16. Rg1 {[%emt 0:02:20]} O-O {[%emt 0:03:10]} 17. h4 {[%emt 0:02:33]} Qe7 {[%emt 0:04:04]} 18. Be2 {[%emt 0:05:56]} Nf6 {[%emt 0:03:13]} 19. g4 {[%emt 0:04:53]} Nfd7 {[%emt 0:00:05]} 20. g5 {[%emt 0:03:53]} Nc5 {[%emt 0:02:28]} 21. Nxc5 {[%emt 0:00:51]} dxc5 {[%emt 0:00:00]} 22. f6 {[%emt 0:01:07]} Qd7 {[%emt 0:00:54]} 23. fxg7 {[%emt 0:03:15]} Rd8 {[%emt 0:00:50]} 24. Qe3 {[%emt 0:01:13]} Nc6 {[%emt 0:02:54]} 25. Nd5 {[%emt 0:01:22]} Nd4 {[%emt 0:00:00]} 26. Nf6+ {[%emt 0:00:22]} Kxg7 {[%emt 0:00:00]} 27. Nxd7 {[%emt 0:00:00]} Nxc2+ {[%emt 0:00:41]} 28. Kf2 {[%emt 0:00:23]} Nxe3 {[%emt 0:00:00]} 29. Nb6 {[%emt 0:07:21]} Bc6 {[%emt 0:03:51]} 30. Nxa8 {[%emt 0:00:00]} Bxa4 {[%emt 0:00:00]} 31. Kxe3 {[%emt 0:03:24]} Rxa8 {[%emt 0:00:26]} 32. Ra1 {[%emt 0:01:18]} Bd7 {[%emt 0:01:20]} 33. Rxa6 {[%emt 0:05:36]} Rb8 {[%emt 0:00:26]} 34. Bc4 {[%emt 0:03:00]} Bb5 {[%emt 0:02:58]} 35. Bxb5 {[%emt 0:00:00]} Rxb5 {[%emt 0:00:00]} 36. Ra2 {[%emt 0:00:11]} Rb3+ {[%emt 0:01:00]} 37. Kd2 {[%emt 0:00:32]} Rh3 {[%emt 0:00:00]} 38. Ra5 {[%emt 0:00:06]} Rxh4 {[%emt 0:00:00]} 39. Rxc5 {[%emt 0:01:28]} Rxe4 {[%emt 0:00:00]} 40. Kd3 {[%emt 0:00:00]} Rd4+ {[%emt 0:01:00]} 41. Kc3 {[%emt 0:40:26]} Re4 {[%emt 0:42:15]} 42. Kd3 {[%emt 0:00:12]} Re1 {[%emt 0:00:43]} 43. Kd2 {[%emt 0:00:19]} Rg1 {[%emt 0:00:37]} 44. Rxe5 {[%emt 0:00:10]} Kg6 {[%emt 0:00:48]} 45. b4 {[%emt 0:00:25]} h6 {[%emt 0:01:04]} 46. gxh6 {[%emt 0:00:39]} Kxh6 {[%emt 0:00:05]} 47. Re1 {[%emt 0:00:44]} Rg6 {[%emt 0:00:45]} 1/2-1/2

[Event "Fagernes GM Open Autumn 2024"]
[Site "Fagernes"]
[Date "2024.10.08"]
[Round "3.30"]
[White "Lien, Sebastian"]
[Black "Rustan, Elias Buschmann"]
[Result "1-0"]
[ECO "E15"]
[WhiteElo "1911"]
[BlackElo "1941"]
[Annotator "RC"]
[PlyCount "93"]
[EventDate "2024.10.03"]
[EventType "swiss"]
[EventCountry "NOR"]
[SourceTitle "playchess.com"]
[Source "ChessBase"]
[SourceQuality "1"]
[TimeControl "40/6000:2400+30"]

1. d4 {[%emt 0:00:00]} Nf6 {[%emt 0:00:00]} 2. c4 {[%emt 0:00:00]} e6 {[%emt 0:00:00]} 3. Nf3 {[%emt 0:00:00]} b6 {[%emt 0:00:00]} 4. g3 {[%emt 0:00:00]} Ba6 {[%emt 0:00:00]} 5. Nbd2 {[%emt 0:00:20]} c5 {[%emt 0:00:10]} 6. Bg2 {[%emt 0:02:37]} Bb7 {[%emt 0:00:12]} 7. dxc5 {[%emt 0:08:38]} bxc5 {[%emt 0:04:03]} 8. O-O {[%emt 0:00:25]} Be7 {[%emt 0:05:08]} 9. Re1 {[%emt 0:26:21]} d5 {[%emt 0:05:48]} 10. cxd5 {[%emt 0:01:23]} exd5 {[%emt 0:00:32]} 11. e4 {[%emt 0:12:33]} dxe4 {[%emt 0:16:07]} 12. Ng5 {[%emt 0:03:30]} O-O {[%emt 0:01:23]} 13. Ngxe4 {[%emt 0:00:25]} Nc6 {[%emt 0:05:29]} 14. Qa4 {[%emt 0:02:29]} Nd5 {[%emt 0:08:47]} 15. Qd1 {[%emt 0:14:49]} Nb6 {[%emt 0:13:24]} 16. Nb3 {[%emt 0:00:38]} Na4 {[%emt 0:09:53]} 17. Be3 {[%emt 0:07:35]} Qxd1 {[%emt 0:01:30]} 18. Raxd1 {[%emt 0:00:00]} Rad8 {[%emt 0:17:39]} 19. Rxd8 {[%emt 0:00:44]} Nxd8 {[%emt 0:01:38]} 20. Bxc5 {[%emt 0:01:07]} Bxc5 {[%emt 0:00:00]} 21. Nexc5 {[%emt 0:00:00]} Bxg2 {[%emt 0:01:09]} 22. Kxg2 {[%emt 0:00:00]} Nxc5 {[%emt 0:00:00]} 23. Nxc5 {[%emt 0:00:00]} Nc6 {[%emt 0:00:00]} 24. a3 {[%emt 0:01:00]} a5 {[%emt 0:00:13]} 25. Rc1 {[%emt 0:00:29]} Ne5 {[%emt 0:01:40]} 26. f4 {[%emt 0:04:53]} Ng6 {[%emt 0:00:03]} 27. Nb7 {[%emt 0:00:21]} Rb8 {[%emt 0:00:00]} 28. Rc7 {[%emt 0:01:02]} Nf8 {[%emt 0:00:58]} 29. f5 {[%emt 0:00:58]} Re8 {[%emt 0:02:38]} 30. b3 {[%emt 0:01:09]} Re5 {[%emt 0:00:00]} 31. Rc5 {[%emt 0:01:15]} Re2+ {[%emt 0:00:12]} 32. Kh3 {[%emt 0:00:00]} a4 {[%emt 0:00:32]} 33. bxa4 {[%emt 0:00:47]} Re3 {[%emt 0:00:01]} 34. Rc8 {[%emt 0:01:07]} Rxa3 {[%emt 0:00:12]} 35. Nc5 {[%emt 0:00:52]} Rc3 {[%emt 0:00:05]} 36. a5 {[%emt 0:00:00]} g5 {[%emt 0:00:00]} 37. f6 {[%emt 0:00:40]} g4+ {[%emt 0:00:00]} 38. Kxg4 {[%emt 0:00:46]} h5+ {[%emt 0:00:00]} 39. Kh3 {[%emt 0:00:09]} h4 {[%emt 0:00:00]} 40. a6 {[%emt 0:00:09]} hxg3 {[%emt 0:00:00]} 41. a7 {[%emt 0:41:14]} gxh2+ {[%emt 0:40:43]} 42. Kxh2 {[%emt 0:00:04]} Rc2+ {[%emt 0:00:20]} 43. Kg1 {[%emt 0:00:16]} Rc1+ {[%emt 0:00:18]} 44. Kf2 {[%emt 0:00:07]} Rc2+ {[%emt 0:00:04]} 45. Ke1 {[%emt 0:00:04]} Rc1+ {[%emt 0:00:16]} 46. Kd2 {[%emt 0:00:04]} Rc2+ {[%emt 0:00:42]} 47. Kxc2 {[%emt 0:00:07]} 1-0

[Event "Fagernes GM Open Autumn 2024"]
[Site "Fagernes"]
[Date "2024.10.09"]
[Round "4.1"]
[White "Raja Rithvik R"]
[Black "Ghasi, Ameet K"]
[Result "0-1"]
[ECO "E94"]
[WhiteElo "2514"]
[BlackElo "2503"]
[Annotator "RC"]
[PlyCount "82"]
[EventDate "2024.10.03"]
[EventType "swiss"]
[EventCountry "NOR"]
[SourceTitle "playchess.com"]
[Source "ChessBase"]
[SourceQuality "1"]
[TimeControl "40/6000:2400+30"]

1. d4 {[%emt 0:01:56]} Nf6 {[%emt 0:00:46]} 2. c4 {[%emt 0:00:00]} g6 {[%emt 0:00:01]} 3. Nc3 {[%emt 0:00:00]} Bg7 {[%emt 0:00:00]} 4. e4 {[%emt 0:00:00]} d6 {[%emt 0:00:00]} 5. Be2 {[%emt 0:00:00]} O-O {[%emt 0:00:00]} 6. Nf3 {[%emt 0:00:00]} e5 {[%emt 0:00:00]} 7. O-O {[%emt 0:00:00]} Na6 {[%emt 0:00:00]} 8. Be3 {[%emt 0:00:00]} Qe7 {[%emt 0:02:30]} 9. Re1 {[%emt 0:08:41]} exd4 {[%emt 0:14:20]} 10. Bxd4 {[%emt 0:00:59]} Bg4 {[%emt 0:09:17]} 11. Bf1 {[%emt 0:19:55]} c6 {[%emt 0:02:51]} 12. h3 {[%emt 0:00:05]} Bxf3 {[%emt 0:00:14]} 13. Qxf3 {[%emt 0:00:00]} Nc5 {[%emt 0:18:03]} 14. Rad1 {[%emt 0:10:47]} Ne6 {[%emt 0:06:36]} 15. Be3 {[%emt 0:00:00]} a5 {[%emt 0:12:12]} 16. Qg3 {[%emt 0:09:33]} Ne8 {[%emt 0:00:00]} 17. Na4 {[%emt 0:05:10]} c5 {[%emt 0:01:22]} 18. Bd2 {[%emt 0:07:09]} Ra6 {[%emt 0:02:17]} 19. Nc3 {[%emt 0:05:09]} N8c7 {[%emt 0:00:06]} 20. Nd5 {[%emt 0:01:10]} Qd8 {[%emt 0:00:00]} 21. Bc3 {[%emt 0:02:25]} Nd4 {[%emt 0:00:33]} 22. a4 {[%emt 0:02:18]} Re8 {[%emt 0:02:51]} 23. f4 {[%emt 0:02:53]} Ra7 {[%emt 0:00:46]} 24. Kh1 {[%emt 0:04:25]} Nce6 {[%emt 0:07:17]} 25. Qf2 {[%emt 0:01:05]} Ra8 {[%emt 0:03:23]} 26. g3 {[%emt 0:05:01]} Nc6 {[%emt 0:01:16]} 27. h4 {[%emt 0:04:49]} Ned4 {[%emt 0:03:16]} 28. h5 {[%emt 0:00:01]} Nb4 {[%emt 0:01:49]} 29. Bd3 {[%emt 0:01:03]} Qd7 {[%emt 0:02:33]} 30. hxg6 {[%emt 0:02:49]} hxg6 {[%emt 0:01:47]} 31. Nb6 {[%emt 0:00:21]} Qh3+ {[%emt 0:00:27]} 32. Kg1 {[%emt 0:00:00]} Ra6 {[%emt 0:00:15]} 33. Nd5 {[%emt 0:00:00]} Nxd5 {[%emt 0:00:00]} 34. cxd5 {[%emt 0:00:00]} Raa8 {[%emt 0:00:09]} 35. Re3 {[%emt 0:01:12]} Re7 {[%emt 0:00:03]} 36. Rde1 {[%emt 0:00:00]} Rae8 {[%emt 0:00:36]} 37. Qf1 {[%emt 0:00:21]} Qg4 {[%emt 0:00:52]} 38. Kg2 {[%emt 0:00:07]} Nf5 {[%emt 0:00:04]} 39. R3e2 {[%emt 0:00:02]} Qxg3+ {[%emt 0:00:31]} 40. Kh1 {[%emt 0:00:00]} Bxc3 {[%emt 0:00:00]} 41. exf5 {[%emt 0:40:47]} Bxe1 {[%emt 0:41:06]} 0-1

[Event "Fagernes GM Open Autumn 2024"]
[Site "Fagernes"]
[Date "2024.10.09"]
[Round "4.2"]
[White "Bazakutsa, Svyatoslav"]
[Black "Jumabayev, Rinat"]
[Result "0-1"]
[ECO "E71"]
[WhiteElo "2483"]
[BlackElo "2577"]
[Annotator "TA"]
[PlyCount "174"]
[EventDate "2024.10.03"]
[EventType "swiss"]
[EventCountry "NOR"]
[SourceTitle "playchess.com"]
[Source "ChessBase"]
[SourceQuality "1"]
[TimeControl "40/6000:2400+30"]

{[%evp 9,174,24,65,29,35,19,64,45,48,59,65,26,35,37,68,68,44,10,19,0,0,-1,0,0,0,0,0,-91,-114,-140,-140,-156,-138,-150,-120,-129,-121,-110,-143,-122,-91,-102,-95,-145,-131,-132,-139,-135,-114,-112,-91,-169,-166,-143,-133,-204,-177,-184,-185,-245,-174,-233,-71,-105,-70,-66,-34,-42,-42,-68,-73,-74,-72,-72,-75,-75,-76,-71,-71,-71,-67,-126,-103,-181,-173,-175,-177,-209,-209,-209,-208,-251,-124,-243,-239,-292,-296,-337,-329,-562,-544,-476,-313,-311,-311,-312,-312,-322,-220,-212,-218,-216,0,-207,-192,-180,-189,-186,-183,-210,-224,-227,-201,-201,-177,-166,-141,-153,0,-110,0,-162,-164,-165,-150,-170,-181,-150,-151,-205,-137,-219,-217,-293,-276,-347,-356,-371,-346,-659,-580,-719,-703,-672,-672,-6949,-4613,-29984,-29985,-29986,-29987,-29987,-29988,-29988,-29989,-29991,-29992]} 1. c4 {[%emt 0:04:30]} Nf6 {[%emt 0:00:00]} 2. Nc3 {[%emt 0:00:00]} g6 {[%emt 0:00:00]} 3. e4 {[%emt 0:00:00]} d6 {[%emt 0:00:00]} 4. d4 {[%emt 0:00:00]} Bg7 {[%emt 0:00:00]} 5. h3 {[%emt 0:00:00]} e5 {[%emt 0:00:00]} 6. d5 {[%emt 0:00:00]} Nbd7 {[%emt 0:00:00]} 7. Be3 {[%emt 0:00:00]} h5 {[%emt 0:00:00]} 8. Nf3 {[%emt 0:03:00] White is slightly better.} Bh6 {[%emt 0:00:00]} 9. Bxh6 {[%emt 0:13:31]} Rxh6 {[%emt 0:01:25]} 10. Qd2 {[%emt 0:00:00]} Rh8 {[%emt 0:00:00]} 11. g3 {[%emt 0:00:00]} Nc5 {[%emt 0:00:20]} 12. Qe3 {[%emt 0:02:48][%cal Of3e5]} a5 {[%emt 0:00:39]} 13. O-O-O {[%emt 0:18:04][%cal Of3e5]} (13. Nxe5 $5 Qe7 14. Nf3 $14) 13... Qe7 {[%emt 0:00:11]} 14. Rg1 {[%emt 0:02:13]} Bd7 {[%emt 0:14:54]} 15. b3 {[%emt 0:13:39]} c6 {[%emt 0:17:18]} 16. Nd2 {[%emt 0:02:48]} Kf8 {[%emt 0:18:09]} 17. f4 {[%emt 0:10:16]} cxd5 {[%emt 0:01:45]} 18. exd5 {[%emt 0:09:58]} (18. cxd5 $11 {remains equal.} Kg7 19. a4) 18... Re8 $17 {[%emt 0:10:36]} 19. Kb2 {[%emt 0:10:02]} exf4 {[%emt 0:03:39] Black is more active.} 20. Qxf4 {[%emt 0:00:11] [#]} Bxh3 $1 {[%emt 0:04:05][%mdl 512]} 21. Nf3 {[%emt 0:00:34]} Bg4 {[%emt 0:02:59][%cal Og6g5]} 22. Re1 {[%emt 0:00:30]} Qd8 {[%emt 0:01:22]} 23. Rxe8+ {[%emt 0:02:34]} Nxe8 {[%emt 0:00:00]} (23... Kxe8 $6 24. Ng5 $11) 24. Ng5 {[%emt 0:00:00][%csl Gg5][%cal Rf4f7]} Qf6 {[%emt 0:03:05]} 25. Qxf6 {[%emt 0:00:00]} Nxf6 {[%emt 0:01:44]} 26. Nb5 {[%emt 0:00:00]} ({White should try} 26. a3) 26... Ne8 {[%emt 0:01:43]} 27. a3 {[%emt 0:00:13]} f6 {[%emt 0:02:01]} 28. Nh3 {[%emt 0:00:00]} Bxh3 {[%emt 0:06:05]} 29. Bxh3 {[%emt 0:00:00]} f5 {[%emt 0:00:00]} 30. b4 {[%emt 0:04:07]} (30. Bg2 $17) 30... axb4 {[%emt 0:00:03]} 31. axb4 {[%emt 0:00:00]} Ne4 {[%emt 0:00:00]} 32. Nd4 {[%emt 0:00:16]} (32. Nc3 $17) 32... h4 {[%emt 0:03:14]} 33. Ne6+ {[%emt 0:00:12]} Ke7 {[%emt 0:00:20]} 34. g4 {[%emt 0:00:00]} (34. gxh4 $142 Rxh4 35. Bf1) 34... Nf2 {[%emt 0:00:02]} 35. Nf4 {[%emt 0:00:00]} Nxh3 $2 {[%emt 0:01:52]} (35... g5 $1 $19 {[%cal Rg5f4] is more deadly.} 36. Ng6+ Kd7 (36... Kf6 37. Nxh8 Nxh3 38. Re1 $11) 37. gxf5 (37. Nxh8 $2 Nxh3 38. Rg2 Nf4 $19) 37... Nxh3) 36. Nxh3 {[%emt 0:00:00]} fxg4 {[%emt 0:00:06]} 37. Rxg4 $19 {[%emt 0:00:00][%mdl 4096] Endgame. KRN-KRN} Kf7 {[%emt 0:00:37]} 38. Rf4+ {[%emt 0:00:00]} Nf6 {[%emt 0:00:47] White must now prevent ...Rh5.} 39. Ng5+ {[%emt 0:00:00]} Ke7 {[%emt 0:00:17] aiming for ...h3.} 40. c5 {[%emt 0:00:00]} Rh5 {[%emt 0:00:10]} (40... Nxd5 $6 41. Rf7+ Kd8 42. cxd6 $11) (40... dxc5 41. d6+ Kd7 42. Rxf6 $11) 41. cxd6+ {[%emt 0:04:50]} Kd7 $1 {[%emt 0:01:08]} 42. Nf3 {[%emt 0:04:02]} Nxd5 {[%emt 0:02:30]} 43. Rxh4 {[%emt 0:01:42]} Kxd6 {[%emt 0:03:28] Hoping for ...Rxh4.} ({But not} 43... Rxh4 44. Nxh4 Nf4 (44... Nxb4 45. Nxg6 Kxd6 46. Kb3 $11) 45. Kc3) 44. Rg4 {[%emt 0:06:16]} Ne7 {[%emt 0:00:06]} 45. Nh4 {[%emt 0:03:01]} (45. Rg1 $15) 45... Ke6 {[%emt 0:01:27]} 46. Kb3 {[%emt 0:03:39]} (46. Nxg6 $2 {perishes.} Kf5 47. Nxe7+ Kxg4 $19) (46. Kc2 $17) 46... g5 {[%emt 0:07:29]} 47. Ng2 {[%emt 0:08:26]} Rh3+ {[%emt 0:07:22]} 48. Ka4 {[%emt 0:00:00]} Kf5 {[%emt 0:00:59]} 49. Rd4 {[%emt 0:00:00]} Rg3 {[%emt 0:08:25]} 50. Ne1 {[%emt 0:00:00]} Nc6 {[%emt 0:07:46]} (50... Re3 $1 $19 {[%cal Re3e1] and Black stays clearly on top.} 51. Nc2 Re2) 51. Rd7 {[%emt 0:04:50]} (51. Rd5+ $17 {was called for.} Kf6 52. Rd6+ Ke7 53. Rd5) 51... Re3 {[%emt 0:00:17]} 52. Nc2 {[%emt 0:00:11]} Re7 {[%emt 0:01:01]} 53. Rd5+ {[%emt 0:06:29]} Kf4 {[%emt 0:00:12] ...g4 would now be deadly.} 54. b5 $2 {[%emt 0:00:40]} (54. Rd1) 54... Re4+ {[%emt 0:04:20]} 55. Kb3 {[%emt 0:00:02]} Re5 {[%emt 0:00:43]} 56. Rd1 {[%emt 0:03:03]} Rxb5+ {[%emt 0:00:23]} 57. Kc4 {[%emt 0:00:02]} Re5 {[%emt 0:00:16]} 58. Rf1+ {[%emt 0:00:50]} Kg3 {[%emt 0:00:17]} 59. Kd3 {[%emt 0:00:10]} Rd5+ {[%emt 0:01:33]} 60. Ke4 {[%emt 0:00:35]} Re5+ {[%emt 0:00:01]} 61. Kd3 {[%emt 0:00:01]} Re7 {[%emt 0:01:16] Threatens to win with ...Ne5+.} 62. Rg1+ {[%emt 0:00:49]} Kf4 {[%emt 0:00:16]} 63. Rf1+ {[%emt 0:00:01]} Ke5 {[%emt 0:00:37]} 64. Ne3 {[%emt 0:00:24]} Rd7+ {[%emt 0:00:07]} 65. Kc3 {[%emt 0:00:26]} Ke6 {[%emt 0:00:20]} 66. Ng4 {[%emt 0:00:18]} Rf7 {[%emt 0:00:15] Against Rf6+} 67. Re1+ {[%emt 0:00:20]} Kd6 $1 {[%emt 0:00:11]} 68. Rd1+ {[%emt 0:00:22]} Ke6 {[%emt 0:00:52]} 69. Re1+ {[%emt 0:00:03]} Kd6 {[%emt 0:00:48]} (69... Kd5 $17 70. Ne3+ Kc5) 70. Rd1+ $1 {[%emt 0:00:01] White is now going downhill.} Kc5 {[%emt 0:00:31]} 71. Ne3 {[%emt 0:00:02] [#]} Ne7 $1 {[%emt 0:00:11] Prevents Rd5+.} 72. Rg1 {[%emt 0:02:25]} Rg7 {[%emt 0:00:05] And now ...Nd5+ would win.} 73. Kd3 {[%emt 0:00:04] [#]} b5 $1 {[%emt 0:01:16]} 74. Ke4 {[%emt 0:00:07]} (74. Rc1+ $17 Kb6 75. Ke4) 74... Rg6 {[%emt 0:00:41]} 75. Ke5 {[%emt 0:01:30]} (75. Rc1+ $17 {might work better.} Kb6 76. Rg1) 75... b4 {[%emt 0:00:22]} 76. Rc1+ {[%emt 0:00:01]} Kb5 {[%emt 0:00:32]} 77. Rc7 {[%emt 0:00:37]} Nc6+ {[%emt 0:00:18]} 78. Kf5 {[%emt 0:03:07]} Rg8 {[%emt 0:00:01]} 79. Nd5 $2 {[%emt 0:00:27]} (79. Kg4) 79... b3 {[%emt 0:01:32]} 80. Rb7+ {[%emt 0:00:02]} Kc4 {[%emt 0:00:27]} 81. Ne3+ {[%emt 0:00:54]} Kc5 {[%emt 0:00:01] Strongly threatening ...Rb8.} 82. Ke4 {[%emt 0:00:13]} Rb8 {[%emt 0:00:24]} 83. Rg7 {[%emt 0:00:56]} Rb4+ {[%emt 0:00:23] Black mates.} 84. Kd3 {[%emt 0:00:18]} Ne5+ {[%emt 0:00:20]} 85. Kd2 {[%emt 0:00:38]} b2 {[%emt 0:00:13]} 86. Rc7+ {[%emt 0:00:17]} Nc6 {[%emt 0:00:26]} 87. Nd1 {[%emt 0:00:32]} b1=Q {[%emt 0:00:13] Weighted Error Value: White=0.23 (precise) /Black=0.23 (precise) .  Loses game:     	White=1     	---        Missed win:     	---       	Black=1      Mistake:       	White=12    	Black=2      Inaccurate:     	White=5     	Black=7      OK:         	White=26    	Black=33     Best:        	White=7     	Black=6      Strong:       	White=1     	Black=1} 0-1

[Event "Fagernes GM Open Autumn 2024"]
[Site "Fagernes"]
[Date "2024.10.09"]
[Round "4.3"]
[White "Urkedal, Frode Olav Olsen"]
[Black "Willow, Jonah B"]
[Result "0-1"]
[ECO "C60"]
[WhiteElo "2559"]
[BlackElo "2420"]
[Annotator "TA"]
[PlyCount "42"]
[EventDate "2024.10.03"]
[EventType "swiss"]
[EventCountry "NOR"]
[SourceTitle "playchess.com"]
[Source "ChessBase"]
[SourceQuality "1"]
[TimeControl "40/6000:2400+30"]

{[%evp 9,42,28,49,49,56,40,88,-66,-60,-77,-58,-63,-24,-209,-198,-198,0,-313,-305,-304,-321,-320,-317,-493,-488,-751,-742,-648,-508,-957,-954,-943,-943,-887,-875]} 1. e4 {[%emt 0:03:49]} e5 {[%emt 0:00:00]} 2. Nf3 {[%emt 0:00:00]} Nc6 {[%emt 0:00:00]} 3. Bb5 {[%emt 0:00:00]} Nge7 {[%emt 0:00:00][%cal Bg8e7,Be7g6,Bg6h4,Bh4f3][%mdl 32]} 4. Nc3 {[%emt 0:00:20]} Ng6 {[%emt 0:00:00]} 5. h4 {[%emt 0:01:35]} Nd4 {[%emt 0:00:00]} 6. Bc4 {[%emt 0:01:30]} h5 {[%emt 0:00:00]} 7. Ng5 {[%emt 0:02:48]} d5 {[%emt 0:00:00]} (7... Ne6 $14) 8. Bxd5 $2 {[%emt 0:04:49]} (8. Nxd5 $16 f6 9. Nf3) 8... Bg4 $1 $15 {[%emt 0:00:00]} 9. f3 $1 {[%emt 0:01:29] [#]} Nxh4 $1 {[%emt 0:02:25]} 10. d3 $1 {[%emt 0:01:51]} Be7 $1 {[%emt 0:04:11] Black is more active.} (10... Nxg2+ $2 11. Kf2 Be6 12. Kxg2 $18) 11. Nxf7 {[%emt 0:05:51] [#]} (11. Bxf7+ $11 {and White is okay.} Kf8 12. O-O Bxg5 13. fxg4 Bxc1 14. Rxc1 Nhf3+ (14... Qg5 $2 15. Bxh5+ Kg8 16. Bf7+ Kh7 17. g3 $19) 15. gxf3 (15. Rxf3 hxg4 16. Rf1 Nf3+ 17. Rxf3 Qd4+ 18. Rf2 g3 $17) 15... Kxf7 16. Ne2) 11... Nhxf3+ $1 $19 {[%emt 0:17:34][%mdl 512]} 12. Kf1 {[%emt 0:16:57] [#]} (12. gxf3 Bh4+) 12... Qc8 {[%emt 0:20:59]} (12... Nh2+ $1 $19 13. Rxh2 Rf8) 13. gxf3 $2 {[%emt 0:01:45][%mdl 8192]} (13. Nxh8 $11 {and White stays safe.} Nh2+ 14. Rxh2 Bxd1 15. Bf7+ (15. Nxd1 $2 {is the wrong capture.} Qg4 $19) 15... Kd7 16. Ng6) 13... Bxf3 {[%emt 0:01:23]} 14. Qxf3 {[%emt 0:04:41]} Nxf3 {[%emt 0:00:00]} 15. Nxh8 {[%emt 0:00:00] Hoping for Bf7+.} Qg4 {[%emt 0:15:13] Strongly threatening ...Bh4.} 16. Bf7+ {[%emt 0:08:06] [#]} (16. Be3 {only move.} Bh4 17. Nd1) 16... Kd7 $1 {[%emt 0:00:13] ( -> ...Bh4). Black is clearly winning.} 17. Bxh5 {[%emt 0:00:16]} (17. Ng6 $142 Bd6 18. Be3) 17... Qg3 $1 {[%emt 0:01:03]} 18. Be3 {[%emt 0:01:56]} Rxh8 {[%emt 0:12:43]} 19. Bg4+ {[%emt 0:10:01]} (19. Bf2 $142 Nh2+ 20. Ke2) 19... Qxg4 {[%emt 0:00:00]} 20. Rxh8 {[%emt 0:00:00]} Bh4 {[%emt 0:05:57]} 21. Rxh4 {[%emt 0:03:12]} Nxh4 {[%emt 0:00:00] Weighted Error Value: White=1.02/Black=0.28 (precise) .  Loses game:     	White=2     	---        Missed win:     	---       	Black=1      Mistake:       	White=3     	Black=1      OK:         	White=4     	---        Best:        	---       	Black=1      Strong:       	White=2     	Black=4      Brilliant:      	---       	Black=2} 0-1

[Event "Fagernes GM Open Autumn 2024"]
[Site "Fagernes"]
[Date "2024.10.09"]
[Round "4.4"]
[White "Stremavicius, Titas"]
[Black "Kvaloy, Aksel Bu"]
[Result "1/2-1/2"]
[ECO "A11"]
[WhiteElo "2541"]
[BlackElo "2484"]
[Annotator "TA"]
[PlyCount "45"]
[EventDate "2024.10.03"]
[EventType "swiss"]
[EventCountry "NOR"]
[SourceTitle "playchess.com"]
[Source "ChessBase"]
[SourceQuality "1"]
[TimeControl "40/6000:2400+30"]

{[%evp 9,45,-29,28,20,19,-3,33,24,29,26,28,24,29,43,43,32,41,33,45,31,39,39,41,45,36,23,27,22,21,-3,0,-8,32,0,0,-20,23,0]} 1. Nf3 {[%emt 0:00:00]} d5 {[%emt 0:00:00]} 2. g3 {[%emt 0:00:00]} Nf6 {[%emt 0:00:00]} 3. Bg2 {[%emt 0:00:00]} c6 {[%emt 0:00:00]} 4. c4 {[%emt 0:00:00]} Bg4 {[%emt 0:00:00]} 5. h3 {[%emt 0:00:15]} Bh5 {[%emt 0:00:00]} ({Günstiger ist} 5... Bxf3 6. Bxf3 d4) 6. d4 {[%emt 0:00:00]} e6 {[%emt 0:00:00]} 7. Nc3 {[%emt 0:00:00]} Be7 {[%emt 0:01:32]} 8. O-O {[%emt 0:00:00] Weiß steht etwas besser.} O-O {[%emt 0:00:36]} 9. Qb3 {[%emt 0:00:00]} (9. g4 $5 Bg6 $8 10. Ne5 $11) 9... Qb6 {[%emt 0:00:57]} 10. Ne5 {[%emt 0:00:01]} Bg6 {[%emt 0:09:48]} 11. Nxg6 {[%emt 0:10:54]} hxg6 {[%emt 0:00:00]} 12. Rd1 {[%emt 0:04:12]} Qa6 {[%emt 0:02:02]} 13. cxd5 {[%emt 0:00:25]} exd5 {[%emt 0:01:04]} 14. e4 {[%emt 0:00:00]} dxe4 {[%emt 0:03:18]} 15. d5 {[%emt 0:07:58]} cxd5 {[%emt 0:16:52]} 16. Nxd5 {[%emt 0:10:11]} Nxd5 {[%emt 0:00:21]} 17. Qxd5 {[%emt 0:22:29]} (17. Rxd5 {vereinfacht} Qe6 18. Rb5 Qxb3 19. Rxb3 f5 20. Rxb7 Nc6 21. Be3) 17... Nc6 {[%emt 0:01:09]} ({Falsch wäre} 17... Rd8 $2 18. Qxd8+ Bxd8 19. Rxd8+ Kh7 20. Be3 $18 (20. Bxe4 Qa5 $17)) 18. Be3 {[%emt 0:00:00][%cal Oa2a4][%mdl 1024] Weiss hat Kompensation.} (18. Bxe4 $2 {zu gefräßig.} Rad8 19. Qb3 Nd4 20. Rxd4 Rxd4 $19) 18... Bf6 {[%emt 0:03:31]} 19. Qb3 {[%emt 0:00:01][%cal Oa1c1]} Na5 {[%emt 0:01:59]} 20. Qb4 {[%emt 0:03:02][%cal Og2f1] [#] Bf1! ist eine echte Drohung.} Nc6 {[%emt 0:01:48]} 21. Qb3 {[%emt 0:00:00]} ({Besser ist} 21. Qxe4 $14 Rad8 22. a4) 21... Na5 $11 {[%emt 0:00:00]} 22. Qb4 {[%emt 0:00:00][%cal Og2f1] Zielt auf Bf1! ab.} Nc6 {[%emt 0:00:00]} 23. Qb3 {[%emt 0:00:00] Gewichteter Fehlerwert: Weiß=0.08 (makellos) /Schwarz=0.15 (sehr präzise) .  Fehler:       	Weiß=1     	---        Ungenau:       	---       	Schwarz=3     OK:         	Weiß=7     	Schwarz=6} 1/2-1/2